bitfinex/quotes_BTCUSD_20250527
["timestamp","ask_amount","ask_price","bid_price","bid_amount"]
[1748328292054,0.22576141,109190.0,109180.0,1.11152]
[1748328292496,0.22576141,109190.0,109180.0,1.12067918]
[1748328293352,0.22576141,109190.0,109180.0,1.11152]
[1748328294884,0.22576141,109190.0,109180.0,1.14233922]
[1748328295079,0.22576141,109190.0,109180.0,1.11152]
[1748328297269,0.22576141,109190.0,109180.0,1.12067918]
[1748328297689,0.22576141,109190.0,109180.0,1.11152]
[1748328297911,0.22576141,109190.0,109180.0,1.44028324]
[1748328299542,0.22576141,109190.0,109180.0,1.11152]
[1748328299764,0.22576141,109190.0,109180.0,0.77152]
[1748328300522,0.22576141,109190.0,109180.0,1.92550351]
[1748328300523,0.03343628,109190.0,109180.0,1.92550351]
[1748328300762,0.03343628,109190.0,109180.0,2.01504907]
[1748328300998,0.03343628,109190.0,109180.0,2.10457058]
[1748328301231,0.06091005,109190.0,109180.0,2.09541199]
[1748328301453,0.05175179,109190.0,109180.0,2.10457058]
[1748328301893,0.0609098,109190.0,109180.0,2.10457058]
[1748328302121,0.0609098,109190.0,109180.0,1.77580734]
[1748328302355,0.07006798,109190.0,109180.0,1.68628583]
[1748328302582,0.07922632,109190.0,109180.0,2.01504907]
[1748328302828,0.07922632,109190.0,109180.0,1.38608]
[1748328302829,0.25323552,109190.0,109180.0,1.38608]
[1748328303095,0.23491967,109190.0,109180.0,1.30390283]
[1748328303279,0.23491967,109190.0,109180.0,1.11156]
[1748328303497,0.22576149,109190.0,109180.0,1.11156]
[1748328303950,0.22576149,109190.0,109180.0,0.77156]
[1748328304374,0.22576149,109190.0,109180.0,0.39644]
[1748328304704,0.24884533,109190.0,109180.0,0.39644]
[1748328305373,0.24884533,109190.0,109180.0,0.39544]
[1748328305601,0.24884533,109190.0,109170.0,0.71512]
[1748328305602,0.22294274,109180.0,109170.0,0.71512]
[1748328306489,0.22294274,109180.0,109170.0,0.76387792]
[1748328306951,0.22294274,109180.0,109170.0,0.71512]
[1748328307838,0.24658311,109180.0,109170.0,0.71516]
[1748328308102,0.24858311,109180.0,109170.0,0.71516]
[1748328308337,0.04902281,109150.0,109140.0,0.75346841]
[1748328308577,0.04902281,109150.0,109140.0,0.95158707]
[1748328308578,0.22309578,109150.0,109140.0,0.95158707]
[1748328308817,0.22309578,109150.0,109140.0,1.22618707]
[1748328309056,0.22309578,109150.0,109140.0,1.13664151]
[1748328309273,0.22309578,109150.0,109140.0,0.39736]
[1748328310188,0.23763663,109150.0,109140.0,0.39736]
[1748328310901,0.23763663,109150.0,109140.0,0.40036]
[1748328311127,0.23763663,109150.0,109140.0,0.39936]
[1748328311352,0.23763663,109150.0,109140.0,0.39736]
[1748328311573,0.23963663,109150.0,109140.0,0.39736]
[1748328311792,0.24163663,109150.0,109140.0,0.39736]
[1748328316517,0.24163663,109150.0,109140.0,0.002]
[1748328316518,0.33118219,109150.0,109140.0,0.002]
[1748328317770,0.33970449,109150.0,109140.0,0.002]
[1748328322815,0.25015893,109150.0,109140.0,0.002]
[1748328323041,0.23561808,109150.0,109140.0,0.19441332]
[1748328323311,0.23561808,109150.0,109140.0,0.002]
[1748328323556,0.25015893,109150.0,109140.0,0.002]
[1748328325251,0.25015893,109150.0,109140.0,0.33076324]
[1748328325452,0.25015893,109150.0,109140.0,0.38674771]
[1748328325923,0.25015893,109150.0,109140.0,0.002]
[1748328326596,0.20801332,109140.0,109130.0,0.35625262]
[1748328326808,0.20801332,109140.0,109130.0,0.53956856]
[1748328327443,0.21717535,109140.0,109130.0,0.53040552]
[1748328327868,0.225705,109140.0,109130.0,0.53040552]
[1748328328069,0.21754297,109140.0,109130.0,0.53040552]
[1748328329478,0.01869168,109140.0,109130.0,0.89464677]
[1748328329716,0.03701651,109140.0,109130.0,0.90383403]
[1748328330131,0.03701651,109140.0,109130.0,0.89467107]
[1748328330339,0.22026738,109140.0,109130.0,0.89467107]
[1748328330774,0.21110535,109140.0,109130.0,0.88550803]
[1748328331062,0.21110535,109140.0,109130.0,0.55674479]
[1748328331264,0.22288052,109140.0,109130.0,0.41835836]
[1748328331488,0.22288052,109140.0,109130.0,0.42752174]
[1748328331724,0.22288052,109140.0,109130.0,0.0987585]
[1748328331950,0.22288052,109140.0,109130.0,0.42752174]
[1748328332167,0.22288052,109140.0,109130.0,0.41835836]
[1748328335718,0.22288052,109140.0,109130.0,0.4435296]
[1748328336364,0.22288052,109140.0,109130.0,0.41835836]
[1748328336579,0.22288052,109140.0,109130.0,0.05004956]
[1748328336798,0.22288052,109140.0,109130.0,0.3788128]
[1748328339341,0.22288052,109140.0,109130.0,0.05004956]
[1748328339564,0.22288052,109140.0,109130.0,0.3788128]
[1748328340530,0.20788052,109140.0,109130.0,0.3788128]
[1748328341852,0.20788052,109140.0,109130.0,0.46573044]
[1748328342090,0.20788052,109140.0,109130.0,0.3788128]
[1748328342748,0.0186916,109140.0,109130.0,1.06007852]
[1748328342980,0.03701601,109140.0,109130.0,1.06007852]
[1748328343868,0.03701592,109140.0,109130.0,1.06007852]
[1748328344164,0.0186916,109140.0,109130.0,1.14960003]
[1748328344378,0.02785372,109140.0,109130.0,1.14960003]
[1748328344586,0.03701601,109140.0,109130.0,1.14960003]
[1748328344797,0.02785372,109140.0,109130.0,1.14960003]
[1748328345014,0.03701601,109140.0,109130.0,1.14960003]
[1748328345246,0.00952965,109140.0,109130.0,1.14960003]
[1748328345488,0.001,109140.0,109130.0,1.14960003]
[1748328346782,0.001,109140.0,109130.0,1.15060003]
[1748328347481,0.21073747,109140.0,109130.0,1.11444753]
[1748328347758,0.0274866,109140.0,109130.0,1.67847835]
[1748328348001,0.02748652,109140.0,109130.0,1.67847835]
[1748328348243,0.00916195,109140.0,109130.0,1.67847835]
[1748328348478,0.01832415,109140.0,109130.0,1.76799986]
[1748328348723,0.01832407,109140.0,109130.0,1.76799986]
[1748328349697,0.00916195,109140.0,109130.0,1.76799986]
[1748328350144,0.23335723,109150.0,109140.0,0.01832449]
[1748328350374,0.23335723,109150.0,109140.0,0.87950063]
[1748328351395,0.23435723,109150.0,109140.0,0.87950063]
[1748328351632,0.23435723,109150.0,109140.0,0.95469934]
[1748328351871,0.23435723,109150.0,109140.0,0.87033877]
[1748328352120,0.22519578,109150.0,109140.0,0.87033902]
[1748328352715,0.22519578,109150.0,109140.0,0.88866351]
[1748328354396,0.22519578,109150.0,109140.0,0.87033902]
[1748328354884,0.21603408,109150.0,109140.0,0.71472]
[1748328355125,0.21603408,109150.0,109130.0,0.74303836]
[1748328355126,0.22301324,109140.0,109130.0,1.0935328]
[1748328355613,0.22301324,109140.0,109130.0,0.76476956]
[1748328355856,0.22301324,109140.0,109130.0,1.10269618]
[1748328356088,0.23217553,109140.0,109130.0,1.10269618]
[1748328356349,0.23217553,109140.0,109130.0,1.29512713]
[1748328356592,0.23217553,109140.0,109130.0,1.11285947]
[1748328357935,0.22301324,109140.0,109130.0,1.10369618]
[1748328358289,0.22301324,109140.0,109130.0,1.29612713]
[1748328359140,0.22301324,109140.0,109130.0,0.96636389]
[1748328359368,0.22301324,109140.0,109130.0,1.29512713]
[1748328360265,0.22401324,109140.0,109130.0,1.29512713]
[1748328361673,0.22401324,109140.0,109130.0,0.96636389]
[1748328361894,0.22401324,109140.0,109130.0,1.29512713]
[1748328362344,0.22401324,109140.0,109130.0,1.0935328]
[1748328363016,0.22401324,109140.0,109130.0,0.76476956]
[1748328363246,0.22401324,109140.0,109130.0,4.956e-05]
[1748328363469,0.23855409,109140.0,109130.0,4.956e-05]
[1748328363694,0.51327409,109140.0,109130.0,4.956e-05]
[1748328363923,0.52183977,109140.0,109130.0,4.956e-05]
[1748328364147,0.52183977,109140.0,109130.0,0.3288128]
[1748328365288,0.52183977,109140.0,109130.0,4.956e-05]
[1748328366552,0.52183977,109140.0,109130.0,0.3288128]
[1748328366761,0.52183977,109140.0,109130.0,4.956e-05]
[1748328366950,0.52183977,109140.0,109130.0,0.3288128]
[1748328368392,0.52183977,109140.0,109130.0,4.956e-05]
[1748328368612,0.52183977,109140.0,109130.0,0.3288128]
[1748328368793,0.51327409,109140.0,109130.0,0.3288128]
[1748328369249,0.51327409,109140.0,109130.0,4.956e-05]
[1748328369692,0.51327409,109140.0,109130.0,0.3288128]
[1748328370316,0.51327409,109140.0,109130.0,4.956e-05]
[1748328370994,0.61138105,109140.0,109130.0,4.956e-05]
[1748328371721,0.62850142,109140.0,109130.0,4.956e-05]
[1748328372870,0.62750142,109140.0,109130.0,4.956e-05]
[1748328373098,0.62850142,109140.0,109130.0,4.956e-05]
[1748328373336,0.35378142,109140.0,109130.0,4.956e-05]
[1748328373559,0.62850142,109140.0,109130.0,0.3288128]
[1748328373779,0.01832743,109120.0,109110.0,0.21079442]
[1748328374004,0.00916346,109120.0,109110.0,0.89620716]
[1748328374226,0.00916346,109120.0,109110.0,0.56744392]
[1748328374670,0.01832709,109120.0,109110.0,0.89620716]
[1748328374894,0.01832709,109120.0,109110.0,0.96912867]
[1748328375115,0.02749097,109120.0,109110.0,1.01912867]
[1748328375807,0.06516702,109130.0,109120.0,0.21077609]
[1748328376033,0.03665217,109130.0,109120.0,0.21077609]
[1748328376254,0.04581555,109130.0,109120.0,0.21077626]
[1748328376469,0.04581555,109130.0,109120.0,0.21993997]
[1748328376751,0.2199205,109130.0,109120.0,0.21077626]
[1748328376976,0.03665284,109130.0,109120.0,0.20161246]
[1748328377193,0.03665284,109130.0,109120.0,0.21077626]
[1748328377409,0.02948946,109130.0,109120.0,0.64029777]
[1748328377624,0.02948946,109130.0,109120.0,0.64946148]
[1748328377847,0.02032567,109130.0,109120.0,0.65862511]
[1748328378070,0.004,109130.0,109120.0,1.39222835]
[1748328378308,0.004,109130.0,109120.0,1.40782835]
[1748328378515,0.01316262,109130.0,109120.0,1.40782835]
[1748328378733,0.004,109130.0,109120.0,1.40782835]
[1748328378953,0.02232567,109130.0,109120.0,1.40782835]
[1748328379213,0.01832567,109130.0,109120.0,1.07906511]
[1748328379504,0.01932567,109130.0,109120.0,1.40782835]
[1748328379732,0.01016271,109130.0,109120.0,1.40782835]
[1748328379951,0.02848854,109130.0,109120.0,1.40782835]
[1748328380546,0.01016271,109130.0,109120.0,1.40782835]
[1748328380772,0.01016262,109130.0,109120.0,1.40782835]
[1748328381002,0.001,109130.0,109120.0,1.49737391]
[1748328382145,0.02748341,109150.0,109140.0,0.21073747]
[1748328382370,0.02748341,109150.0,109140.0,0.55550071]
[1748328382838,0.03664494,109150.0,109140.0,0.64502222]
[1748328383103,0.02748341,109150.0,109140.0,0.64502222]
[1748328383337,0.22498225,109170.0,109160.0,0.20153876]
[1748328383583,0.02031963,109170.0,109160.0,0.53946252]
[1748328383791,0.21207575,109170.0,109160.0,0.53946252]
[1748328384004,0.03803526,109170.0,109160.0,0.54862288]
[1748328384454,0.21268016,109170.0,109160.0,0.21069928]
[1748328384673,0.21282884,109170.0,109160.0,0.53946252]
[1748328384892,0.20366915,109170.0,109160.0,0.19237815]
[1748328385120,0.22550921,109170.0,109160.0,0.32876324]
[1748328386221,0.00916078,109160.0,109150.0,0.60891859]
[1748328386442,0.24209962,109160.0,109150.0,0.3982017]
[1748328386656,0.23293893,109160.0,109150.0,0.71780324]
[1748328387336,0.23293893,109160.0,109150.0,0.91936064]
[1748328387543,0.23293893,109160.0,109150.0,0.95290974]
[1748328387756,0.23293893,109160.0,109150.0,0.96207127]
[1748328388255,0.23293893,109160.0,109150.0,0.95290974]
[1748328388495,0.23293893,109160.0,109150.0,0.76051396]
[1748328388724,0.22377815,109160.0,109150.0,0.38904]
[1748328389147,0.22377815,109160.0,109150.0,0.72696494]
[1748328389568,0.22377815,109160.0,109150.0,0.71780324]
[1748328389981,0.22377815,109160.0,109150.0,0.38904]
[1748328390184,0.22377815,109160.0,109150.0,0.71780324]
[1748328394217,0.20817815,109160.0,109150.0,0.71780324]
[1748328394443,0.22467815,109160.0,109150.0,0.71780324]
[1748328396015,0.22467815,109160.0,109150.0,0.38904]
[1748328396217,0.22467815,109160.0,109150.0,0.71780324]
[1748328397052,0.22467815,109160.0,109150.0,0.80732475]
[1748328397908,0.22467815,109160.0,109150.0,0.71780324]
[1748328400025,0.22467815,109160.0,109150.0,0.38904]
[1748328400200,0.22467815,109160.0,109150.0,0.71780324]
[1748328403932,0.239219,109160.0,109150.0,0.71780324]
[1748328404984,0.20034919,109170.0,109150.0,1.26852141]
[1748328405203,0.02748131,109160.0,109150.0,1.04537968]
[1748328405441,0.03664158,109160.0,109150.0,1.70944505]
[1748328405675,0.03664158,109160.0,109150.0,1.72776761]
[1748328405906,0.01832037,109160.0,109150.0,1.49771113]
[1748328406118,0.0366415,109160.0,109150.0,1.49771113]
[1748328406372,0.02046763,109170.0,109160.0,0.57505939]
[1748328406582,0.01130803,109170.0,109160.0,0.6807809]
[1748328406794,0.02046755,109170.0,109160.0,1.00954414]
[1748328407006,0.02962724,109170.0,109160.0,1.00954414]
[1748328407523,0.00214868,109170.0,109160.0,1.0990897]
[1748328408359,0.01130795,109170.0,109160.0,1.0990897]
[1748328408509,0.01130795,109170.0,109160.0,0.77032646]
[1748328408716,0.01130795,109170.0,109160.0,1.0990897]
[1748328408939,0.00214868,109170.0,109160.0,1.0990897]
[1748328409463,0.00214868,109170.0,109160.0,0.77032646]
[1748328409672,0.00214868,109170.0,109160.0,1.0990897]
[1748328410101,0.01130803,109170.0,109160.0,1.0990897]
[1748328410323,0.02046746,109170.0,109160.0,1.3737697]
[1748328410761,0.02962698,109170.0,109160.0,1.3737697]
[1748328411161,0.02046746,109170.0,109160.0,1.3737697]
[1748328411364,0.02962706,109170.0,109160.0,1.3737697]
[1748328411579,0.02046746,109170.0,109160.0,1.3737697]
[1748328412016,0.02962706,109170.0,109160.0,1.3737697]
[1748328412236,0.02046746,109170.0,109160.0,1.3737697]
[1748328412449,0.02962706,109170.0,109160.0,1.3737697]
[1748328412676,0.02046746,109170.0,109160.0,1.3737697]
[1748328413565,0.02962698,109170.0,109160.0,1.3737697]
[1748328414229,0.02962698,109170.0,109160.0,1.3575697]
[1748328414762,0.03878667,109170.0,109160.0,1.3575697]
[1748328414946,0.02962698,109170.0,109160.0,1.3575697]
[1748328415887,0.03878667,109170.0,109160.0,1.3575697]
[1748328416101,0.03878658,109170.0,109160.0,1.3575697]
[1748328416519,0.03878658,109170.0,109160.0,1.0676897]
[1748328416729,0.03878658,109170.0,109160.0,1.3423297]
[1748328417623,0.04794635,109170.0,109160.0,1.3423297]
[1748328417939,0.03878658,109170.0,109160.0,1.3423297]
[1748328418785,0.04794627,109170.0,109160.0,1.3423297]
[1748328419958,0.03878658,109170.0,109160.0,1.3583297]
[1748328420139,0.02046746,109170.0,109160.0,1.3583297]
[1748328420838,0.00214868,109170.0,109160.0,1.3748297]
[1748328421282,0.01130803,109170.0,109160.0,1.3748297]
[1748328421736,0.02046755,109170.0,109160.0,1.3748297]
[1748328422054,0.01130803,109170.0,109160.0,1.3748297]
[1748328422765,0.01130795,109170.0,109160.0,1.3748297]
[1748328423515,0.002,109190.0,109180.0,0.58096027]
[1748328423733,0.0020908,109190.0,109180.0,2.1387156]
[1748328423958,0.002,109210.0,109200.0,0.55062169]
[1748328424181,0.002,109210.0,109200.0,0.91480725]
[1748328424402,0.002,109210.0,109200.0,1.333092]
[1748328426373,0.002,109210.0,109200.0,1.348492]
[1748328426590,0.002,109210.0,109200.0,1.67725524]
[1748328427964,0.002,109210.0,109200.0,1.348492]
[1748328428200,0.002,109210.0,109200.0,1.333092]
[1748328429201,0.002,109210.0,109200.0,1.66185524]
[1748328434203,0.002,109210.0,109200.0,1.00432876]
[1748328434418,0.002,109210.0,109200.0,1.66185524]
[1748328434620,0.01115591,109210.0,109200.0,1.66185524]
[1748328437560,0.02031199,109210.0,109200.0,1.66185524]
[1748328438261,0.01115591,109210.0,109200.0,1.66185524]
[1748328438875,0.02031199,109210.0,109200.0,1.66185524]
[1748328440692,0.01115591,109210.0,109200.0,1.66185524]
[1748328440913,0.002,109210.0,109200.0,1.66185524]
[1748328441120,0.01115591,109210.0,109200.0,1.66185524]
[1748328442116,0.01115599,109210.0,109200.0,1.66185524]
[1748328442315,0.002,109210.0,109200.0,1.67685524]
[1748328443175,0.002,109210.0,109200.0,1.69335524]
[1748328443587,0.002,109210.0,109200.0,1.03582876]
[1748328443794,0.002,109210.0,109200.0,1.69335524]
[1748328448693,0.002,109210.0,109200.0,2.07895524]
[1748328449325,0.002,109210.0,109200.0,1.42142876]
[1748328449521,0.002,109210.0,109200.0,2.07895524]
[1748328451704,0.002,109210.0,109200.0,2.06245524]
[1748328452511,0.002,109210.0,109200.0,2.06233524]
[1748328457048,0.002,109210.0,109200.0,2.07803524]
[1748328457469,0.002,109210.0,109200.0,1.41791524]
[1748328457614,0.002,109210.0,109200.0,2.07803524]
[1748328460028,0.002,109210.0,109200.0,2.47331524]
[1748328460227,0.002,109210.0,109200.0,2.45761524]
[1748328461535,0.002,109210.0,109200.0,2.47341524]
[1748328461722,0.002,109210.0,109200.0,2.45761524]
[1748328461983,0.002,109210.0,109200.0,1.80008876]
[1748328462206,0.002,109210.0,109200.0,2.45761524]
[1748328462687,0.002,109210.0,109200.0,2.44261524]
[1748328463560,0.0333,109210.0,109200.0,2.44261524]
[1748328464022,0.002,109210.0,109200.0,2.44261524]
[1748328464232,0.00172941,109210.0,109200.0,2.44261524]
[1748328464675,0.01088532,109210.0,109200.0,1.78508876]
[1748328464911,0.23447557,109210.0,109200.0,0.48482556]
[1748328465131,0.23447557,109210.0,109200.0,1.10568324]
[1748328465350,0.24304294,109210.0,109200.0,0.72404324]
[1748328465565,0.24304294,109210.0,109200.0,1.10568324]
[1748328465777,0.24304294,109210.0,109200.0,0.72404324]
[1748328465986,0.24304294,109210.0,109200.0,1.53520475]
[1748328466639,0.24304294,109210.0,109200.0,1.15356475]
[1748328469062,0.25758379,109210.0,109200.0,0.34]
[1748328469276,0.23378305,109190.0,109180.0,0.69068895]
[1748328469492,0.23378305,109190.0,109180.0,1.03984805]
[1748328469695,0.23378305,109190.0,109180.0,1.23219079]
[1748328469948,0.23378305,109190.0,109180.0,1.16310319]
[1748328470167,0.23378305,109190.0,109180.0,0.88858319]
[1748328470382,0.23378305,109190.0,109180.0,1.16310319]
[1748328470603,0.23378305,109190.0,109180.0,1.16510319]
[1748328471400,0.23378305,109190.0,109180.0,1.16710319]
[1748328472697,0.23378305,109190.0,109180.0,1.2566247]
[1748328472918,0.23378305,109190.0,109180.0,0.344]
[1748328473318,0.23378305,109190.0,109180.0,0.67276324]
[1748328478164,0.23378305,109190.0,109180.0,0.67076324]
[1748328478369,0.23378305,109190.0,109180.0,0.66876324]
[1748328478588,0.23378305,109190.0,109180.0,0.341]
[1748328478795,0.23378305,109190.0,109180.0,0.67076324]
[1748328480528,0.23378305,109190.0,109180.0,0.70470426]
[1748328481167,0.23378305,109190.0,109180.0,0.67076324]
[1748328482191,0.23382305,109190.0,109180.0,0.67076324]
[1748328482777,0.24298131,109190.0,109180.0,0.87226508]
[1748328482982,0.24298131,109190.0,109180.0,0.88142393]
[1748328483394,0.24298131,109190.0,109180.0,0.89058269]
[1748328483630,0.24298131,109190.0,109180.0,0.9801042]
[1748328486598,0.24298131,109190.0,109180.0,0.6421822]
[1748328486814,0.24298131,109190.0,109180.0,0.63094544]
[1748328487852,0.23382339,109190.0,109180.0,0.61262766]
[1748328488059,0.23382339,109190.0,109180.0,0.62178676]
[1748328488259,0.23382339,109190.0,109180.0,0.63094577]
[1748328490104,0.23382339,109190.0,109180.0,0.6401047]
[1748328493334,0.23382339,109190.0,109180.0,0.64926346]
[1748328495007,0.24239173,109190.0,109180.0,0.64926346]
[1748328495467,0.02692444,109190.0,109180.0,0.64926287]
[1748328495901,0.0183561,109190.0,109180.0,0.64926287]
[1748328498015,0.02692952,109190.0,109180.0,0.64926287]
[1748328498542,0.04212952,109190.0,109180.0,0.64926287]
[1748328498790,0.02692901,109190.0,109180.0,0.64926287]
[1748328498930,0.03608719,109190.0,109180.0,0.73880843]
[1748328499745,0.05168719,109190.0,109180.0,0.73880843]
[1748328503232,0.0516871,109190.0,109180.0,0.73880843]
[1748328503443,0.0360871,109190.0,109180.0,0.73880843]
[1748328503796,0.04524528,109190.0,109180.0,0.73880843]
[1748328505795,0.06084528,109190.0,109180.0,0.73880843]
[1748328506008,0.06084528,109190.0,109180.0,0.70601474]
[1748328507193,0.04252901,109190.0,109180.0,0.70601474]
[1748328507414,0.02692901,109190.0,109180.0,0.70601474]
[1748328507617,0.0452452,109190.0,109180.0,0.70601474]
[1748328507887,0.03608702,109190.0,109180.0,0.70601474]
[1748328508061,0.04524511,109190.0,109180.0,0.70601474]
[1748328508943,0.02692901,109190.0,109180.0,0.70601474]
[1748328509173,0.03608719,109190.0,109180.0,0.70601474]
[1748328509383,0.04524545,109190.0,109180.0,0.70601474]
[1748328509792,0.2596124,109190.0,109180.0,0.98061483]
[1748328510025,0.07644545,109190.0,109180.0,0.98061432]
[1748328511951,0.07644545,109190.0,109180.0,1.01351509]
[1748328512360,0.08560379,109190.0,109180.0,1.01351509]
[1748328513436,0.08560379,109190.0,109180.0,0.68464477]
[1748328513690,0.08560379,109190.0,109180.0,1.01351509]
[1748328514770,0.08560379,109190.0,109180.0,1.0043565]
[1748328514979,0.07644612,109190.0,109180.0,1.0043565]
[1748328515202,0.25961307,109190.0,109180.0,0.72059782]
[1748328515457,0.23213871,109190.0,109180.0,0.002]
[1748328515657,0.23213871,109190.0,109180.0,0.33087032]
[1748328516964,0.22434283,109180.0,109170.0,0.82527692]
[1748328517182,0.22434283,109180.0,109170.0,1.33330511]
[1748328517387,0.23350151,109180.0,109170.0,1.32414551]
[1748328518266,0.23350151,109180.0,109170.0,1.32614551]
[1748328519055,0.23350151,109180.0,109170.0,1.32814551]
[1748328519206,0.23350151,109180.0,109170.0,1.05354551]
[1748328519414,0.23350151,109180.0,109170.0,1.32814551]
[1748328519872,0.23350151,109180.0,109170.0,0.7155155]
[1748328520054,0.22434283,109180.0,109170.0,1.04626653]
[1748328520294,0.22434283,109180.0,109170.0,1.22946704]
[1748328520937,0.22434283,109180.0,109170.0,0.76250668]
[1748328521157,0.22434283,109180.0,109170.0,0.3440908]
[1748328521382,0.23888368,109180.0,109170.0,0.0040908]
[1748328521817,0.52232409,109180.0,109170.0,0.0040908]
[1748328522047,0.61160011,109180.0,109170.0,0.0040908]
[1748328522264,0.62874208,109180.0,109170.0,0.0040908]
[1748328522479,0.62874208,109180.0,109170.0,0.0020908]
[1748328522667,0.62874208,109180.0,109170.0,9.08e-05]
[1748328522895,0.62974208,109180.0,109170.0,9.08e-05]
[1748328523076,0.63958249,109180.0,109170.0,9.08e-05]
[1748328523285,0.63074208,109180.0,109170.0,9.08e-05]
[1748328523494,0.62974208,109180.0,109170.0,9.08e-05]
[1748328523963,0.64515454,109180.0,109170.0,9.08e-05]
[1748328524704,0.64415454,109180.0,109170.0,9.08e-05]
[1748328525115,0.64615454,109180.0,109170.0,9.08e-05]
[1748328528425,1.03615454,109180.0,109170.0,9.08e-05]
[1748328528800,1.04615454,109180.0,109170.0,9.08e-05]
[1748328529840,1.29615454,109180.0,109170.0,9.08e-05]
[1748328530046,1.64065359,109180.0,109170.0,9.08e-05]
[1748328530279,1.64065359,109180.0,109160.0,0.002]
[1748328530280,0.57700121,109170.0,109160.0,0.002]
[1748328530489,1.06020874,109170.0,109160.0,0.002]
[1748328530728,1.09439658,109170.0,109160.0,0.002]
[1748328531499,1.06877961,109170.0,109160.0,0.002]
[1748328531671,0.69225961,109170.0,109160.0,0.002]
[1748328531872,0.33771876,109170.0,109160.0,0.002]
[1748328532077,0.32057679,109170.0,109160.0,0.40504398]
[1748328532279,0.33511764,109170.0,109160.0,0.07617366]
[1748328532707,0.32654677,109170.0,109160.0,0.07617366]
[1748328533013,0.32954677,109170.0,109160.0,0.07717366]
[1748328533252,0.32654677,109170.0,109160.0,0.07717366]
[1748328533474,0.3898756,109170.0,109160.0,0.07617366]
[1748328533710,0.3918756,109170.0,109160.0,0.07617366]
[1748328534611,0.20691883,109160.0,109150.0,0.32887032]
[1748328535801,0.22231883,109160.0,109150.0,0.32887032]
[1748328536044,0.20991883,109160.0,109150.0,0.32887032]
[1748328537944,0.19239561,109150.0,109140.0,0.20940779]
[1748328538203,0.19239561,109150.0,109140.0,0.53827811]
[1748328538901,0.19239561,109150.0,109140.0,0.33087032]
[1748328539107,0.19239561,109150.0,109140.0,0.34003286]
[1748328539357,0.19239561,109150.0,109140.0,0.54894602]
[1748328539558,0.19239561,109150.0,109140.0,0.61806296]
[1748328539796,0.18323408,109150.0,109140.0,0.42564964]
[1748328540217,0.18323408,109150.0,109140.0,0.40974964]
[1748328540800,0.18323408,109150.0,109140.0,0.35653286]
[1748328541021,0.18323408,109150.0,109140.0,0.34737032]
[1748328541238,0.18323408,109150.0,109140.0,0.35653286]
[1748328542102,0.18323408,109150.0,109140.0,0.34737032]
[1748328542773,0.18323408,109150.0,109140.0,0.002]
[1748328542998,0.18323408,109150.0,109140.0,0.36247032]
[1748328543631,0.18323408,109150.0,109140.0,0.55488364]
[1748328543849,0.18323408,109150.0,109140.0,0.36247032]
[1748328544810,0.19853408,109150.0,109140.0,0.33087032]
[1748328545026,0.19853408,109150.0,109140.0,0.002]
[1748328545213,0.19853408,109150.0,109140.0,0.33087032]
[1748328545421,0.18323408,109150.0,109140.0,0.33087032]
[1748328547939,0.21463408,109150.0,109140.0,0.33087032]
[1748328548156,0.22917493,109150.0,109140.0,0.33087032]
[1748328549104,0.21287493,109150.0,109140.0,0.33087032]
[1748328549601,0.21587493,109150.0,109140.0,0.33087032]
[1748328550900,0.21587493,109150.0,109140.0,0.6619293]
[1748328550901,0.02132231,109150.0,109140.0,0.6619293]
[1748328551191,0.03964444,109150.0,109140.0,0.75147486]
[1748328551413,0.02132197,109150.0,109140.0,0.75147486]
[1748328551744,0.01216094,109150.0,109140.0,0.75147486]
[1748328551949,0.01932205,109150.0,109140.0,0.75147486]
[1748328552197,0.01832205,109150.0,109140.0,0.76060454]
[1748328552491,0.00916094,109150.0,109140.0,1.08947486]
[1748328552708,0.01832113,109160.0,109150.0,0.24131817]
[1748328552968,0.02748191,109160.0,109150.0,0.57018849]
[1748328553471,0.02748132,109160.0,109150.0,0.74925556]
[1748328553982,0.0366421,109160.0,109150.0,0.74925556]
[1748328554212,0.0376421,109160.0,109150.0,0.74925556]
[1748328554880,0.0396421,109160.0,109150.0,0.74925556]
[1748328556119,0.20453876,109160.0,109150.0,0.31254126]
[1748328556361,0.21369962,109160.0,109150.0,0.61997303]
[1748328556566,0.20453893,109160.0,109150.0,0.32887032]
[1748328556774,0.23673893,109160.0,109150.0,0.32887032]
[1748328559025,0.22083893,109160.0,109150.0,0.32887032]
[1748328559249,0.22083893,109160.0,109150.0,0.0091617]
[1748328559535,0.01832265,109150.0,109140.0,0.58303647]
[1748328559726,0.20453876,109160.0,109150.0,0.20869561]
[1748328559873,0.20453876,109160.0,109150.0,0.53756593]
[1748328560298,0.19537815,109160.0,109150.0,0.53756593]
[1748328560688,0.0121601,109160.0,109150.0,0.89266593]
[1748328560891,0.03048073,109160.0,109150.0,1.09005547]
[1748328561091,0.02848065,109160.0,109150.0,1.09005547]
[1748328561303,0.03764126,109160.0,109150.0,1.09005547]
[1748328561779,0.03764117,109160.0,109150.0,1.09005547]
[1748328561987,0.02848065,109160.0,109150.0,1.09005547]
[1748328562183,0.03964117,109160.0,109150.0,1.09005547]
[1748328562472,0.04880186,109160.0,109150.0,1.09005547]
[1748328562689,0.03964117,109160.0,109150.0,1.09005547]
[1748328562896,0.04880186,109160.0,109150.0,1.09005547]
[1748328563107,0.04880178,109160.0,109150.0,1.36473547]
[1748328563317,0.04880178,109160.0,109150.0,1.17233986]
[1748328563515,0.04880178,109160.0,109150.0,1.35557394]
[1748328563733,0.03048065,109160.0,109150.0,1.36473547]
[1748328563953,0.03048065,109160.0,109150.0,1.49473547]
[1748328564172,0.003,109160.0,109150.0,1.49473547]
[1748328564378,0.003,109160.0,109150.0,1.82360579]
[1748328564912,0.003,109160.0,109150.0,1.49473547]
[1748328565136,0.003,109160.0,109150.0,1.82360579]
[1748328566895,0.002,109160.0,109150.0,1.82360579]
[1748328567381,0.01120879,109170.0,109160.0,0.58309886]
[1748328567595,0.01120879,109170.0,109160.0,1.48083625]
[1748328569114,0.00204952,109170.0,109160.0,1.48083625]
[1748328569738,0.00204952,109170.0,109160.0,1.48987953]
[1748328577103,0.19946486,109210.0,109180.0,0.88345405]
[1748328577104,0.00172941,109210.0,109180.0,0.88345405]
[1748328577339,0.00172941,109210.0,109200.0,1.23976233]
[1748328577587,0.00172941,109210.0,109200.0,1.4188294]
[1748328577588,0.00186565,109210.0,109200.0,1.4188294]
[1748328577796,0.00186565,109210.0,109200.0,1.08995908]
[1748328578022,0.00186565,109210.0,109200.0,1.05855908]
[1748328578778,0.00186565,109210.0,109200.0,1.07355908]
[1748328578992,0.00186565,109210.0,109200.0,1.4024294]
[1748328579429,0.00186565,109210.0,109200.0,1.4034294]
[1748328580106,0.00186565,109210.0,109200.0,1.4044294]
[1748328580798,0.00186565,109210.0,109200.0,1.4207294]
[1748328581038,0.00186565,109210.0,109200.0,1.42180101]
[1748328587329,0.00186565,109210.0,109200.0,0.64323886]
[1748328587330,0.01756565,109210.0,109200.0,0.64323886]
[1748328587549,0.01756565,109210.0,109200.0,0.97210918]
[1748328588024,0.04282173,109210.0,109200.0,0.96295226]